[Event "Nordic Chess-ch 2019"]
[Site "Sarpsborg"]
[Date "2019.06.25"]
[Round "7.12"]
[White "Blauhut, Holger"]
[Black "Altarbosh, Ward"]
[Result "1-0"]
[ECO "C01"]
[WhiteElo "2041"]
[BlackElo "2250"]
[Annotator "NA"]
[PlyCount "97"]
[EventDate "2019.06.21"]
[EventType "swiss"]
[EventCountry "NOR"]
[SourceTitle "playchess.com"]
[Source "ChessBase"]
[SourceQuality "1"]
[TimeControl "40/5400+30:1800+30"]

1. e4 {[%emt 0:00:00]} e6 {[%emt 0:00:00]} 2. d4 {[%emt 0:00:00]} d5 {[%emt 0:00:00]} 3. Bd3 {[%emt 0:00:00]} dxe4 {[%emt 0:00:00]} 4. Bxe4 {[%emt 0:00:00]} Nf6 {[%emt 0:00:03]} 5. Bf3 {[%emt 0:00:04]} c5 {[%emt 0:00:03]} 6. Ne2 {[%emt 0:00:17]} Nc6 {[%emt 0:00:05]} 7. Be3 {[%emt 0:00:05]} cxd4 {[%emt 0:00:45]} 8. Nxd4 {[%emt 0:00:19]} Nxd4 {[%emt 0:00:16]} 9. Qxd4 {[%emt 0:00:10]} Qc7 {[%emt 0:00:40]} 10. Nc3 {[%emt 0:01:44]} Bd7 {[%emt 0:00:10]} 11. O-O-O {[%emt 0:05:02]} Be7 {[%emt 0:00:38]} 12. Bf4 {[%emt 0:02:00]} Qc8 {[%emt 0:05:39]} 13. Bd6 {[%emt 0:01:05]} Bxd6 {[%emt 0:01:55]} 14. Qxd6 {[%emt 0:00:05]} Bc6 {[%emt 0:00:04]} 15. Qa3 {[%emt 0:16:52]} Qc7 {[%emt 0:06:48]} 16. Rd4 {[%emt 0:17:18]} Bxf3 {[%emt 0:52:50]} 17. gxf3 {[%emt 0:07:44]} Qe7 {[%emt 0:02:52]} 18. Qa4+ {[%emt 0:01:12]} Kf8 {[%emt 0:01:15]} 19. Rhd1 {[%emt 0:01:43]} g6 {[%emt 0:15:25]} 20. Ne4 {[%emt 0:10:36]} Nd5 {[%emt 0:07:52]} 21. c4 {[%emt 0:01:28]} Nb6 {[%emt 0:00:14]} 22. Qb5 {[%emt 0:00:17]} e5 {[%emt 0:02:54]} 23. Rd7 {[%emt 0:08:09]} Nxd7 {[%emt 0:00:08]} 24. Rxd7 {[%emt 0:00:02]} Qe6 {[%emt 0:00:45]} 25. Ng5 {[%emt 0:00:14]} Qc6 {[%emt 0:00:28]} 26. Rxf7+ {[%emt 0:00:13]} Kg8 {[%emt 0:00:08]} 27. Rxb7 {[%emt 0:04:40]} Qxb5 {[%emt 0:00:49]} 28. cxb5 {[%emt 0:00:02]} h6 {[%emt 0:00:28]} 29. Ne4 {[%emt 0:00:21]} Kf8 {[%emt 0:00:34]} 30. Nf6 {[%emt 0:01:10]} h5 {[%emt 0:00:38]} 31. h4 {[%emt 0:00:56]} Rc8+ {[%emt 0:00:28]} 32. Kd2 {[%emt 0:01:00]} Rd8+ {[%emt 0:00:07]} 33. Ke3 {[%emt 0:00:20]} Rd6 {[%emt 0:00:19]} 34. Ne4 {[%emt 0:00:38]} Rb6 {[%emt 0:00:22]} 35. Rxa7 {[%emt 0:01:16]} Rxb5 {[%emt 0:00:59]} 36. b3 {[%emt 0:00:16]} Rb8 {[%emt 0:00:20]} 37. Nf6 {[%emt 0:02:31]} Rb4 {[%emt 0:00:25]} 38. a4 {[%emt 0:14:30]} Rf4 {[%emt 0:01:02]} 39. Ne4 {[%emt 0:00:39]} Rg8 {[%emt 0:00:29]} 40. Ng5 {[%emt 0:01:04]} Rf5 {[%emt 0:00:21]} 41. Ne6+ {[%emt 0:30:33]} Ke8 {[%emt 0:30:06]} 42. Ng7+ {[%emt 0:00:17]} Rxg7 {[%emt 0:00:08]} 43. Rxg7 {[%emt 0:00:05]} Rf6 {[%emt 0:00:26]} 44. a5 {[%emt 0:00:33]} Kf8 {[%emt 0:00:23]} 45. Rb7 {[%emt 0:00:08]} g5 {[%emt 0:00:37]} 46. hxg5 {[%emt 0:00:19]} Ra6 {[%emt 0:00:10]} 47. b4 {[%emt 0:00:14]} Ra8 {[%emt 0:01:49]} 48. Rh7 {[%emt 0:01:12]} Rb8 {[%emt 0:00:22]} 49. Rh8+ {[%emt 0:00:05]} 1-0

[Event "Nordic Chess-ch 2019"]
[Site "Sarpsborg"]
[Date "2019.06.25"]
[Round "7.13"]
[White "Sjoberg, Isak"]
[Black "Haugli, Petter"]
[Result "0-1"]
[ECO "B43"]
[WhiteElo "2222"]
[BlackElo "2223"]
[Annotator "NA"]
[PlyCount "62"]
[EventDate "2019.06.21"]
[EventType "swiss"]
[EventCountry "NOR"]
[SourceTitle "playchess.com"]
[Source "ChessBase"]
[SourceQuality "1"]
[TimeControl "40/5400+30:1800+30"]

1. e4 {[%emt 0:00:15]} c5 {[%emt 0:00:00]} 2. Nf3 {[%emt 0:00:05]} e6 {[%emt 0:00:00]} 3. d4 {[%emt 0:00:10]} cxd4 {[%emt 0:00:00]} 4. Nxd4 {[%emt 0:00:05]} a6 {[%emt 0:00:00]} 5. Nc3 {[%emt 0:01:09]} Qc7 {[%emt 0:00:00]} 6. Bd3 {[%emt 0:00:27]} Nf6 {[%emt 0:00:00]} 7. f4 {[%emt 0:00:06]} Bb4 {[%emt 0:00:50]} 8. O-O {[%emt 0:00:14]} Bc5 {[%emt 0:02:13]} 9. Nce2 {[%emt 0:00:06]} Nc6 {[%emt 0:02:06]} 10. c3 {[%emt 0:00:41]} d6 {[%emt 0:01:50]} 11. Kh1 {[%emt 0:02:30]} e5 {[%emt 0:06:18]} 12. Nb3 {[%emt 0:07:07]} Ba7 {[%emt 0:01:31]} 13. Ng3 {[%emt 0:00:25]} Ng4 {[%emt 0:27:13]} 14. Qe2 {[%emt 0:19:50]} Qe7 {[%emt 0:09:19]} 15. Nf5 {[%emt 0:05:44]} Bxf5 {[%emt 0:00:16]} 16. exf5 {[%emt 0:00:05]} Nxh2 {[%emt 0:02:46]} 17. Rg1 {[%emt 0:14:11]} h5 {[%emt 0:03:24]} 18. g3 {[%emt 0:09:17]} Bxg1 {[%emt 0:05:35]} 19. Kxg1 {[%emt 0:00:33]} Ng4 {[%emt 0:00:05]} 20. Bd2 {[%emt 0:00:08]} exf4 {[%emt 0:02:21]} 21. Bxf4 {[%emt 0:03:49]} Qxe2 {[%emt 0:01:15]} 22. Bxe2 {[%emt 0:00:04]} O-O-O {[%emt 0:01:48]} 23. Rd1 {[%emt 0:01:50]} Rhe8 {[%emt 0:01:08]} 24. Bf3 {[%emt 0:00:47]} Nce5 {[%emt 0:01:46]} 25. Bg2 {[%emt 0:00:48]} Nc4 {[%emt 0:01:45]} 26. Rd4 {[%emt 0:00:58]} Re1+ {[%emt 0:03:20]} 27. Bf1 {[%emt 0:00:07]} Nge3 {[%emt 0:02:41]} 28. Bxe3 {[%emt 0:00:08]} Nxe3 {[%emt 0:00:04]} 29. Nd2 {[%emt 0:00:28]} Nxf1 {[%emt 0:03:13]} 30. Nxf1 {[%emt 0:00:16]} Rde8 {[%emt 0:01:13]} 31. Rd2 {[%emt 0:03:50]} R8e2 {[%emt 0:01:18]} 0-1

[Event "Nordic Chess-ch 2019"]
[Site "Sarpsborg"]
[Date "2019.06.25"]
[Round "7.14"]
[White "Tunsjo, Axel"]
[Black "Ernst, Thomas"]
[Result "0-1"]
[ECO "B26"]
[WhiteElo "2002"]
[BlackElo "2342"]
[Annotator "NA"]
[PlyCount "100"]
[EventDate "2019.06.21"]
[EventType "swiss"]
[EventCountry "NOR"]
[SourceTitle "playchess.com"]
[Source "ChessBase"]
[SourceQuality "1"]
[TimeControl "40/5400+30:1800+30"]

1. e4 {[%emt 0:00:00]} c5 {[%emt 0:00:00]} 2. Nc3 {[%emt 0:00:05]} Nc6 {[%emt 0:00:48]} 3. g3 {[%emt 0:00:44]} g6 {[%emt 0:00:14]} 4. Bg2 {[%emt 0:00:09]} Bg7 {[%emt 0:00:09]} 5. Nge2 {[%emt 0:00:12]} d6 {[%emt 0:03:24]} 6. O-O {[%emt 0:00:16]} e5 {[%emt 0:01:30]} 7. d3 {[%emt 0:03:36]} Nge7 {[%emt 0:00:15]} 8. Be3 {[%emt 0:05:16]} O-O {[%emt 0:00:21]} 9. Qd2 {[%emt 0:03:20]} Nd4 {[%emt 0:04:45]} 10. Rae1 {[%emt 0:03:26]} Be6 {[%emt 0:04:29]} 11. f4 {[%emt 0:08:57]} Qd7 {[%emt 0:00:53]} 12. Nd5 {[%emt 0:30:41]} Nxd5 {[%emt 0:13:26]} 13. exd5 {[%emt 0:00:17]} Bg4 {[%emt 0:00:23]} 14. Nc1 {[%emt 0:04:54]} Rae8 {[%emt 0:03:49]} 15. c3 {[%emt 0:04:06]} exf4 {[%emt 0:00:50]} 16. Rxf4 {[%emt 0:02:01]} Nf5 {[%emt 0:01:09]} 17. Rxg4 {[%emt 0:01:34]} Nxe3 {[%emt 0:00:44]} 18. Re4 {[%emt 0:00:06]} Nxg2 {[%emt 0:01:20]} 19. Kxg2 {[%emt 0:00:17]} Re5 {[%emt 0:01:20]} 20. Rxe5 {[%emt 0:02:28]} dxe5 {[%emt 0:02:59]} 21. c4 {[%emt 0:00:34]} f5 {[%emt 0:00:51]} 22. Qf2 {[%emt 0:01:03]} f4 {[%emt 0:08:07]} 23. Nb3 {[%emt 0:02:55]} b6 {[%emt 0:01:12]} 24. Nd2 {[%emt 0:02:56]} fxg3 {[%emt 0:00:13]} 25. Qxg3 {[%emt 0:01:05]} Bh6 {[%emt 0:04:28]} 26. Ne4 {[%emt 0:00:41]} Bf4 {[%emt 0:00:26]} 27. Qh3 {[%emt 0:00:18]} Qf5 {[%emt 0:01:15]} 28. Qxf5 {[%emt 0:02:03]} gxf5 {[%emt 0:00:14]} 29. Ng3 {[%emt 0:00:05]} Rf6 {[%emt 0:03:41]} 30. Kf3 {[%emt 0:02:26]} Rh6 {[%emt 0:02:21]} 31. Nxf5 {[%emt 0:06:41]} Rxh2 {[%emt 0:00:09]} 32. Rg1+ {[%emt 0:00:57]} Kf7 {[%emt 0:00:49]} 33. Rg7+ {[%emt 0:01:31]} Kf6 {[%emt 0:00:16]} 34. d6 {[%emt 0:00:25]} Kxf5 {[%emt 0:06:14]} 35. d7 {[%emt 0:00:48]} Rh3+ {[%emt 0:00:49]} 36. Ke2 {[%emt 0:00:06]} Re3+ {[%emt 0:00:12]} 37. Kd2 {[%emt 0:00:04]} e4 {[%emt 0:07:10]} 38. Rf7+ {[%emt 0:05:39]} Kg6 {[%emt 0:14:02]} 39. dxe4 {[%emt 0:05:02]} Rxe4+ {[%emt 0:00:07]} 40. Kc3 {[%emt 0:01:44]} Be5+ {[%emt 0:01:20]} 41. Kb3 {[%emt 0:30:31]} Rd4 {[%emt 0:30:14]} 42. d8=Q {[%emt 0:00:28]} Rxd8 {[%emt 0:00:09]} 43. Rxa7 {[%emt 0:00:05]} Rd2 {[%emt 0:00:26]} 44. a3 {[%emt 0:00:23]} Rxb2+ {[%emt 0:00:42]} 45. Ka4 {[%emt 0:00:07]} Rf2 {[%emt 0:00:27]} 46. Rb7 {[%emt 0:00:15]} Rf6 {[%emt 0:00:47]} 47. Kb5 {[%emt 0:00:03]} h5 {[%emt 0:00:36]} 48. a4 {[%emt 0:01:43]} h4 {[%emt 0:00:21]} 49. a5 {[%emt 0:00:56]} bxa5 {[%emt 0:00:13]} 50. Kxc5 {[%emt 0:00:08]} h3 {[%emt 0:01:28]} 0-1

[Event "Nordic Chess-ch 2019"]
[Site "Sarpsborg"]
[Date "2019.06.25"]
[Round "7.15"]
[White "Thorn, Eric"]
[Black "Hamre, Kenneth"]
[Result "0-1"]
[ECO "A30"]
[WhiteElo "2230"]
[BlackElo "2033"]
[Annotator "NA"]
[PlyCount "82"]
[EventDate "2019.06.21"]
[EventType "swiss"]
[EventCountry "NOR"]
[SourceTitle "playchess.com"]
[Source "ChessBase"]
[SourceQuality "1"]
[TimeControl "40/5400+30:1800+30"]

1. Nf3 {[%emt 0:00:00]} c5 {[%emt 0:00:00]} 2. c4 {[%emt 0:00:05]} Nf6 {[%emt 0:00:00]} 3. Nc3 {[%emt 0:01:14]} b6 {[%emt 0:01:05]} 4. g3 {[%emt 0:00:40]} Bb7 {[%emt 0:00:05]} 5. Bg2 {[%emt 0:00:30]} e6 {[%emt 0:00:26]} 6. O-O {[%emt 0:00:57]} Be7 {[%emt 0:00:13]} 7. d4 {[%emt 0:01:53]} cxd4 {[%emt 0:00:44]} 8. Qxd4 {[%emt 0:00:05]} O-O {[%emt 0:17:06]} 9. Rd1 {[%emt 0:03:12]} d6 {[%emt 0:14:00]} 10. Bg5 {[%emt 0:03:08]} Nbd7 {[%emt 0:06:32]} 11. Nb5 {[%emt 0:17:48]} d5 {[%emt 0:01:59]} 12. cxd5 {[%emt 0:16:56]} Bxd5 {[%emt 0:01:39]} 13. Qf4 {[%emt 0:23:19]} Rc8 {[%emt 0:19:19]} 14. Nc3 {[%emt 0:02:13]} Rc4 {[%emt 0:00:34]} 15. e4 {[%emt 0:06:24]} Bc6 {[%emt 0:17:09]} 16. Ne5 {[%emt 0:00:44]} Nh5 {[%emt 0:02:24]} 17. Bxe7 {[%emt 0:04:09]} Qxe7 {[%emt 0:00:03]} 18. Nxc6 {[%emt 0:08:51]} Rxc6 {[%emt 0:00:02]} 19. Qd2 {[%emt 0:00:06]} Ne5 {[%emt 0:01:21]} 20. f4 {[%emt 0:01:19]} Nc4 {[%emt 0:00:18]} 21. Qe2 {[%emt 0:01:01]} Nxb2 {[%emt 0:03:30]} 22. Nb5 {[%emt 0:03:00]} Nxd1 {[%emt 0:01:18]} 23. Rxd1 {[%emt 0:01:20]} e5 {[%emt 0:03:14]} 24. fxe5 {[%emt 0:02:24]} Qxe5 {[%emt 0:02:48]} 25. Rd5 {[%emt 0:00:28]} Qa1+ {[%emt 0:00:01]} 26. Bf1 {[%emt 0:00:03]} Nf6 {[%emt 0:00:17]} 27. Rg5 {[%emt 0:01:09]} a6 {[%emt 0:01:27]} 28. e5 {[%emt 0:00:30]} axb5 {[%emt 0:00:43]} 29. exf6 {[%emt 0:00:11]} Qd4+ {[%emt 0:00:27]} 30. Kg2 {[%emt 0:00:31]} Rxf6 {[%emt 0:00:41]} 31. Rxb5 {[%emt 0:00:22]} h6 {[%emt 0:01:27]} 32. Rb3 {[%emt 0:00:44]} Rd8 {[%emt 0:02:20]} 33. Rd3 {[%emt 0:00:14]} Qxd3 {[%emt 0:00:06]} 34. Qxd3 {[%emt 0:00:04]} Rxd3 {[%emt 0:00:06]} 35. Bxd3 {[%emt 0:00:05]} Rd6 {[%emt 0:00:18]} 36. Bc4 {[%emt 0:00:33]} Rd4 {[%emt 0:00:09]} 37. Bb3 {[%emt 0:00:04]} Rd2+ {[%emt 0:00:15]} 38. Kh3 {[%emt 0:00:06]} g5 {[%emt 0:00:36]} 39. g4 {[%emt 0:00:12]} Kg7 {[%emt 0:01:11]} 40. Kg3 {[%emt 0:00:22]} Rd3+ {[%emt 0:00:42]} 41. Kf2 {[%emt 0:30:05]} Kf6 {[%emt 0:31:04]} 0-1

[Event "Nordic Chess-ch 2019"]
[Site "Sarpsborg"]
[Date "2019.06.25"]
[Round "7.16"]
[White "Ptacnikova, Lenka"]
[Black "Schouten, Mathias Lind"]
[Result "0-1"]
[ECO "A36"]
[WhiteElo "2145"]
[BlackElo "1967"]
[Annotator "NA"]
[PlyCount "134"]
[EventDate "2019.06.21"]
[EventType "swiss"]
[EventCountry "NOR"]
[SourceTitle "playchess.com"]
[Source "ChessBase"]
[SourceQuality "1"]
[TimeControl "40/5400+30:1800+30"]

1. c4 {[%emt 0:00:00]} c5 {[%emt 0:00:00]} 2. g3 {[%emt 0:00:00]} Nc6 {[%emt 0:00:00]} 3. Bg2 {[%emt 0:00:00]} g6 {[%emt 0:00:00]} 4. Nc3 {[%emt 0:00:01]} Bg7 {[%emt 0:00:00]} 5. h4 {[%emt 0:00:08]} h5 {[%emt 0:00:50]} 6. Nh3 {[%emt 0:00:08]} e6 {[%emt 0:01:55]} 7. d3 {[%emt 0:04:16]} Nge7 {[%emt 0:01:55]} 8. Nf4 {[%emt 0:03:04]} O-O {[%emt 0:02:04]} 9. Bd2 {[%emt 0:00:50]} a6 {[%emt 0:00:30]} 10. Rb1 {[%emt 0:08:09]} Rb8 {[%emt 0:03:16]} 11. O-O {[%emt 0:04:32]} b5 {[%emt 0:04:54]} 12. b3 {[%emt 0:05:56]} b4 {[%emt 0:01:53]} 13. Ne4 {[%emt 0:00:30]} d6 {[%emt 0:00:42]} 14. e3 {[%emt 0:00:34]} Qc7 {[%emt 0:21:46]} 15. Bc1 {[%emt 0:07:24]} Rd8 {[%emt 0:15:55]} 16. Bb2 {[%emt 0:01:48]} e5 {[%emt 0:00:29]} 17. Nd5 {[%emt 0:06:48]} Nxd5 {[%emt 0:00:09]} 18. cxd5 {[%emt 0:00:04]} Ne7 {[%emt 0:04:51]} 19. Nd2 {[%emt 0:04:02]} Bb7 {[%emt 0:04:56]} 20. e4 {[%emt 0:00:15]} Bc8 {[%emt 0:00:06]} 21. Nc4 {[%emt 0:00:41]} Bd7 {[%emt 0:02:50]} 22. Kh2 {[%emt 0:00:22]} Bb5 {[%emt 0:05:42]} 23. Bh3 {[%emt 0:01:23]} Bxc4 {[%emt 0:00:28]} 24. dxc4 {[%emt 0:00:27]} Kh7 {[%emt 0:00:31]} 25. f4 {[%emt 0:04:46]} Ng8 {[%emt 0:00:54]} 26. f5 {[%emt 0:03:42]} Qe7 {[%emt 0:04:37]} 27. Qe2 {[%emt 0:00:44]} Rf8 {[%emt 0:03:14]} 28. Rf2 {[%emt 0:00:29]} Nf6 {[%emt 0:02:02]} 29. Rbf1 {[%emt 0:01:10]} Bh6 {[%emt 0:00:49]} 30. Bc1 {[%emt 0:07:46]} Bxc1 {[%emt 0:00:11]} 31. Rxc1 {[%emt 0:00:03]} Rh8 {[%emt 0:01:46]} 32. Rcf1 {[%emt 0:00:29]} Rbf8 {[%emt 0:00:07]} 33. Qe3 {[%emt 0:00:59]} Kg7 {[%emt 0:01:06]} 34. Kg2 {[%emt 0:01:06]} a5 {[%emt 0:00:41]} 35. Kf3 {[%emt 0:02:24]} Rh6 {[%emt 0:08:13]} 36. Kg2 {[%emt 0:08:23]} Rhh8 {[%emt 0:00:16]} 37. fxg6 {[%emt 0:06:02]} fxg6 {[%emt 0:00:10]} 38. Qg5 {[%emt 0:00:49]} Rh6 {[%emt 0:02:40]} 39. Be6 {[%emt 0:00:15]} Qd8 {[%emt 0:03:26]} 40. Rf3 {[%emt 0:00:41]} Qe7 {[%emt 0:01:23]} 41. R1f2 {[%emt 0:30:15]} Qd8 {[%emt 0:10:50]} 42. Kf1 {[%emt 0:00:00]} Qe7 {[%emt 0:00:31]} 43. Ke2 {[%emt 0:00:00]} Qd8 {[%emt 0:00:05]} 44. Kd3 {[%emt 0:00:00]} Qe7 {[%emt 0:00:03]} 45. Rf1 {[%emt 0:00:00]} Qd8 {[%emt 0:00:05]} 46. R3f2 {[%emt 0:00:00]} Qe7 {[%emt 0:03:39]} 47. g4 {[%emt 0:00:00]} Qd8 {[%emt 0:14:10]} 48. Ke2 {[%emt 0:04:55]} Qe7 {[%emt 0:01:15]} 49. Kd3 {[%emt 0:10:00]} Qd8 {[%emt 0:00:04]} 50. a3 {[%emt 0:02:06]} bxa3 {[%emt 0:01:47]} 51. Kc2 {[%emt 0:00:34]} a4 {[%emt 0:01:06]} 52. bxa4 {[%emt 0:03:04]} Qb6 {[%emt 0:03:03]} 53. Qc1 {[%emt 0:03:23]} Qb4 {[%emt 0:01:00]} 54. g5 {[%emt 0:00:47]} Qxc4+ {[%emt 0:00:16]} 55. Kd1 {[%emt 0:00:36]} Qd3+ {[%emt 0:00:30]} 56. Qd2 {[%emt 0:00:25]} Qb1+ {[%emt 0:00:18]} 57. Qc1 {[%emt 0:00:15]} Qd3+ {[%emt 0:00:04]} 58. Qd2 {[%emt 0:00:51]} Qb1+ {[%emt 0:00:25]} 59. Qc1 {[%emt 0:00:21]} a2 {[%emt 0:02:22]} 60. gxh6+ {[%emt 0:00:44]} Kh7 {[%emt 0:00:06]} 61. Rxa2 {[%emt 0:00:25]} Qxa2 {[%emt 0:00:10]} 62. Qc2 {[%emt 0:00:24]} Qa1+ {[%emt 0:01:16]} 63. Ke2 {[%emt 0:00:16]} Qd4 {[%emt 0:00:12]} 64. a5 {[%emt 0:00:52]} Rb8 {[%emt 0:00:45]} 65. Rb1 {[%emt 0:00:27]} Rxb1 {[%emt 0:00:37]} 66. Qxb1 {[%emt 0:00:06]} Qc4+ {[%emt 0:00:09]} 67. Ke3 {[%emt 0:00:30]} Qc3+ {[%emt 0:01:25]} 0-1

[Event "Nordic Chess-ch 2019"]
[Site "Sarpsborg"]
[Date "2019.06.25"]
[Round "7.17"]
[White "Sahl, Sheila Barth"]
[Black "Dingertz, Erik"]
[Result "1-0"]
[ECO "C50"]
[WhiteElo "2127"]
[BlackElo "1969"]
[Annotator "NA"]
[PlyCount "51"]
[EventDate "2019.06.21"]
[EventType "swiss"]
[EventCountry "NOR"]
[SourceTitle "playchess.com"]
[Source "ChessBase"]
[SourceQuality "1"]
[TimeControl "40/5400+30:1800+30"]

1. e4 {[%emt 0:00:00]} e5 {[%emt 0:00:00]} 2. Nf3 {[%emt 0:00:00]} Nc6 {[%emt 0:00:00]} 3. Bc4 {[%emt 0:00:00]} Bc5 {[%emt 0:00:04]} 4. d3 {[%emt 0:00:26]} Nf6 {[%emt 0:00:14]} 5. Nbd2 {[%emt 0:01:02]} O-O {[%emt 0:01:39]} 6. O-O {[%emt 0:00:28]} Re8 {[%emt 0:02:37]} 7. c3 {[%emt 0:03:44]} a6 {[%emt 0:08:22]} 8. b4 {[%emt 0:07:02]} Bf8 {[%emt 0:03:08]} 9. Qb3 {[%emt 0:03:47]} Re7 {[%emt 0:03:14]} 10. a4 {[%emt 0:02:03]} d6 {[%emt 0:03:25]} 11. Re1 {[%emt 0:06:21]} Be6 {[%emt 0:01:40]} 12. Bxe6 {[%emt 0:02:01]} Rxe6 {[%emt 0:01:22]} 13. d4 {[%emt 0:04:55]} exd4 {[%emt 0:01:32]} 14. cxd4 {[%emt 0:04:01]} d5 {[%emt 0:01:57]} 15. e5 {[%emt 0:01:08]} Ne4 {[%emt 0:02:26]} 16. Nxe4 {[%emt 0:08:52]} dxe4 {[%emt 0:00:37]} 17. d5 {[%emt 0:00:14]} Rg6 {[%emt 0:02:10]} 18. Rxe4 {[%emt 0:01:55]} Nxb4 {[%emt 0:01:09]} 19. d6 {[%emt 0:26:21]} a5 {[%emt 0:08:23]} 20. e6 {[%emt 0:03:14]} fxe6 {[%emt 0:05:08]} 21. Rxe6 {[%emt 0:00:13]} Rxe6 {[%emt 0:00:13]} 22. Qxe6+ {[%emt 0:00:04]} Kh8 {[%emt 0:00:06]} 23. Ne5 {[%emt 0:02:57]} Qf6 {[%emt 0:00:27]} 24. Nf7+ {[%emt 0:00:09]} Kg8 {[%emt 0:00:07]} 25. Nh6+ {[%emt 0:00:07]} Kh8 {[%emt 0:00:06]} 26. Qg8# {[%emt 0:00:05]} 1-0

[Event "Nordic Chess-ch 2019"]
[Site "Sarpsborg"]
[Date "2019.06.25"]
[Round "7.18"]
[White "Tunge, Christian"]
[Black "Neretljak, Nedzad"]
[Result "1-0"]
[ECO "A20"]
[WhiteElo "2027"]
[BlackElo "2114"]
[Annotator "NA"]
[PlyCount "133"]
[EventDate "2019.06.21"]
[EventType "swiss"]
[EventCountry "NOR"]
[SourceTitle "playchess.com"]
[Source "ChessBase"]
[SourceQuality "1"]
[TimeControl "40/5400+30:1800+30"]

1. c4 {[%emt 0:00:00]} e5 {[%emt 0:00:00]} 2. g3 {[%emt 0:00:00]} c6 {[%emt 0:00:09]} 3. Nf3 {[%emt 0:10:07]} e4 {[%emt 0:00:15]} 4. Nd4 {[%emt 0:00:11]} d5 {[%emt 0:00:26]} 5. d3 {[%emt 0:02:04]} Nf6 {[%emt 0:06:45]} 6. Nc3 {[%emt 0:15:00]} c5 {[%emt 0:07:18]} 7. Nc2 {[%emt 0:13:03]} e3 {[%emt 0:11:32]} 8. fxe3 {[%emt 0:04:10]} h5 {[%emt 0:01:22]} 9. Nxd5 {[%emt 0:04:05]} h4 {[%emt 0:00:22]} 10. Nxf6+ {[%emt 0:07:47]} Qxf6 {[%emt 0:00:16]} 11. Bg2 {[%emt 0:00:11]} hxg3 {[%emt 0:05:58]} 12. hxg3 {[%emt 0:00:14]} Rxh1+ {[%emt 0:03:53]} 13. Bxh1 {[%emt 0:00:06]} Bd6 {[%emt 0:01:00]} 14. Kd2 {[%emt 0:05:53]} Bxg3 {[%emt 0:01:13]} 15. Rb1 {[%emt 0:08:11]} Nc6 {[%emt 0:02:41]} 16. Bxc6+ {[%emt 0:05:16]} bxc6 {[%emt 0:07:55]} 17. Qh1 {[%emt 0:01:40]} Rb8 {[%emt 0:00:34]} 18. Qh8+ {[%emt 0:00:40]} Ke7 {[%emt 0:00:20]} 19. Qh5 {[%emt 0:00:53]} g5 {[%emt 0:06:58]} 20. Qf3 {[%emt 0:00:45]} Qd6 {[%emt 0:00:17]} 21. b3 {[%emt 0:00:51]} Be5 {[%emt 0:02:42]} 22. Ba3 {[%emt 0:00:39]} g4 {[%emt 0:05:56]} 23. Qf1 {[%emt 0:01:44]} Ke8 {[%emt 0:02:55]} 24. d4 {[%emt 0:01:26]} Bh2 {[%emt 0:01:52]} 25. Bxc5 {[%emt 0:00:14]} Qg6 {[%emt 0:00:07]} 26. Qg2 {[%emt 0:01:59]} g3 {[%emt 0:01:45]} 27. Rh1 {[%emt 0:02:39]} Bf5 {[%emt 0:01:28]} 28. Rxh2 {[%emt 0:00:30]} gxh2 {[%emt 0:06:38]} 29. Qxh2 {[%emt 0:00:07]} Rb7 {[%emt 0:00:07]} 30. Nb4 {[%emt 0:02:50]} a5 {[%emt 0:08:26]} 31. Qh8+ {[%emt 0:02:38]} Kd7 {[%emt 0:00:58]} 32. Na6 {[%emt 0:00:39]} Bb1 {[%emt 0:05:21]} 33. Qa8 {[%emt 0:00:38]} Qc2+ {[%emt 0:05:23]} 34. Ke1 {[%emt 0:00:07]} Rb4 {[%emt 0:01:50]} 35. Qa7+ {[%emt 0:00:28]} Ke6 {[%emt 0:00:12]} 36. Qe7+ {[%emt 0:00:18]} Kf5 {[%emt 0:00:05]} 37. Qxf7+ {[%emt 0:00:19]} Kg4 {[%emt 0:00:08]} 38. Qf4+ {[%emt 0:01:52]} Kh5 {[%emt 0:00:57]} 39. Nxb4 {[%emt 0:00:20]} axb4 {[%emt 0:02:42]} 40. Bxb4 {[%emt 0:00:12]} Qc1+ {[%emt 0:00:38]} 41. Kf2 {[%emt 0:30:50]} Kg6 {[%emt 0:05:28]} 42. Be7 {[%emt 0:00:00]} Qh1 {[%emt 0:00:24]} 43. Qf3 {[%emt 0:00:00]} Qh2+ {[%emt 0:01:25]} 44. Qg2+ {[%emt 0:00:00]} Qxg2+ {[%emt 0:00:09]} 45. Kxg2 {[%emt 0:00:00]} Bxa2 {[%emt 0:00:07]} 46. b4 {[%emt 0:00:00]} Bxc4 {[%emt 0:00:48]} 47. Kf3 {[%emt 0:00:00]} Kf7 {[%emt 0:01:21]} 48. Bc5 {[%emt 0:00:00]} Ke6 {[%emt 0:00:13]} 49. e4 {[%emt 0:00:00]} Bb3 {[%emt 0:02:36]} 50. b5 {[%emt 0:00:00]} cxb5 {[%emt 0:00:37]} 51. d5+ {[%emt 0:00:00]} Ke5 {[%emt 0:00:22]} 52. Ke3 {[%emt 0:00:00]} Bc2 {[%emt 0:00:16]} 53. Bd4+ {[%emt 0:00:00]} Kd6 {[%emt 0:00:06]} 54. Kf4 {[%emt 0:00:00]} b4 {[%emt 0:00:38]} 55. Kf5 {[%emt 0:00:00]} Bb1 {[%emt 0:05:24]} 56. Bg7 {[%emt 0:00:00]} b3 {[%emt 0:00:58]} 57. Bf8+ {[%emt 0:00:00]} Kd7 {[%emt 0:00:21]} 58. Ba3 {[%emt 0:00:00]} Bc2 {[%emt 0:00:17]} 59. Ke5 {[%emt 0:00:00]} Bd1 {[%emt 0:00:12]} 60. e3 {[%emt 0:00:00]} Bf3 {[%emt 0:01:26]} 61. Kd4 {[%emt 0:00:00]} Bg2 {[%emt 0:01:34]} 62. e5 {[%emt 0:00:00]} Bf3 {[%emt 0:01:06]} 63. e6+ {[%emt 0:00:00]} Kc7 {[%emt 0:00:35]} 64. Ke5 {[%emt 0:00:00]} Bg2 {[%emt 0:01:33]} 65. d6+ {[%emt 0:00:00]} Kc6 {[%emt 0:00:05]} 66. d7 {[%emt 0:00:00]} Kc7 {[%emt 0:00:55]} 67. Kf6 {[%emt 0:00:00]} 1-0

[Event "Nordic Chess-ch 2019"]
[Site "Sarpsborg"]
[Date "2019.06.25"]
[Round "7.19"]
[White "Jashari, Driton"]
[Black "Wahlund, Max"]
[Result "0-1"]
[ECO "D00"]
[WhiteElo "1755"]
[BlackElo "2103"]
[Annotator "NA"]
[PlyCount "58"]
[EventDate "2019.06.21"]
[EventType "swiss"]
[EventCountry "NOR"]
[SourceTitle "playchess.com"]
[Source "ChessBase"]
[SourceQuality "1"]
[TimeControl "40/5400+30:1800+30"]

1. d4 {[%emt 0:03:35]} Nf6 {[%emt 0:00:00]} 2. Nf3 {[%emt 0:00:51]} g6 {[%emt 0:00:00]} 3. Nc3 {[%emt 0:00:52]} d5 {[%emt 0:00:15]} 4. e3 {[%emt 0:01:33]} Bg7 {[%emt 0:00:05]} 5. Bd3 {[%emt 0:00:43]} c5 {[%emt 0:01:00]} 6. dxc5 {[%emt 0:00:43]} Qa5 {[%emt 0:00:43]} 7. Bb5+ {[%emt 0:02:12]} Bd7 {[%emt 0:00:37]} 8. Bd3 {[%emt 0:04:10]} Ne4 {[%emt 0:06:35]} 9. Bxe4 {[%emt 0:05:13]} dxe4 {[%emt 0:02:26]} 10. Nd4 {[%emt 0:00:31]} f5 {[%emt 0:06:55]} 11. O-O {[%emt 0:04:03]} Qxc5 {[%emt 0:00:03]} 12. Nce2 {[%emt 0:00:35]} Nc6 {[%emt 0:03:12]} 13. c3 {[%emt 0:00:30]} e5 {[%emt 0:06:42]} 14. b4 {[%emt 0:03:24]} Qe7 {[%emt 0:10:55]} 15. Nb5 {[%emt 0:05:02]} O-O {[%emt 0:58:02]} 16. a4 {[%emt 0:03:20]} Be6 {[%emt 0:00:00]} 17. Ba3 {[%emt 0:00:26]} Rfd8 {[%emt 0:00:00]} 18. Qc2 {[%emt 0:00:06]} a6 {[%emt 0:00:00]} 19. Nbd4 {[%emt 0:04:30]} exd4 {[%emt 0:00:00]} 20. exd4 {[%emt 0:00:54]} Qf7 {[%emt 0:00:00]} 21. b5 {[%emt 0:01:02]} axb5 {[%emt 0:00:00]} 22. axb5 {[%emt 0:00:05]} Na5 {[%emt 0:00:00]} 23. Bc5 {[%emt 0:00:21]} Nb3 {[%emt 0:00:00]} 24. Rxa8 {[%emt 0:00:47]} Rxa8 {[%emt 0:00:00]} 25. h3 {[%emt 0:01:40]} Bc4 {[%emt 0:00:00]} 26. Rb1 {[%emt 0:00:09]} Nxc5 {[%emt 0:00:00]} 27. dxc5 {[%emt 0:00:18]} Bd3 {[%emt 0:00:00]} 28. Qb2 {[%emt 0:00:07]} Ra2 {[%emt 0:00:00]} 29. Qb4 {[%emt 0:00:15]} Bxb1 {[%emt 0:00:00]} 0-1